[Event "34th GER-ch Seniors-65 2022"]
[Site "Magdeburg"]
[Date "2022.08.18"]
[Round "7.3"]
[White "Heinemann, Ernst"]
[Black "Klundt, Klaus"]
[Result "0-1"]
[ECO "B46"]
[WhiteElo "2120"]
[BlackElo "2288"]
[Annotator "TA"]
[PlyCount "90"]
[EventDate "2022.08.12"]
[EventType "swiss"]
[EventCountry "GER"]
[SourceTitle "playchess.com"]
[Source "ChessBase"]
[SourceQuality "1"]
[TimeControl "40/5400+30:1800+30"]

{[%evp 21,90,10,23,-22,-13,-31,22,22,29,-21,-8,-12,12,0,5,0,8,0,0,-42,0,-3,-9,-2,0,0,82,0,48,0,129,-20,65,0,99,-79,-54,-64,-25,-21,-16,-120,-113,-104,-93,-108,-33,-154,-2,-395,-370,-541,-146,-141,0,-206,-191,-194,-160,-340,-354,-320,-345,-467,-478,-900,-843,-2266,-2237,-1339,-1222]} 1. e4 {[%emt 0:00:06]} c5 {[%emt 0:00:11]} 2. Nf3 {[%emt 0:00:16]} e6 {[%emt 0:00:09]} 3. Nc3 {[%emt 0:00:24]} a6 {[%emt 0:00:17]} 4. d4 {[%emt 0:01:31]} cxd4 {[%emt 0:00:10]} 5. Nxd4 {[%emt 0:00:14]} Nc6 {[%emt 0:00:11]} 6. Nxc6 {[%emt 0:00:42]} bxc6 {[%emt 0:00:07]} 7. Bd3 {[%emt 0:00:34]} Qc7 {[%emt 0:00:26]} 8. O-O {[%emt 0:02:42]} Nf6 {[%emt 0:00:30]} 9. Qe2 {[%emt 0:02:37]} Be7 {[%emt 0:01:55]} 10. b3 {[%emt 0:10:31]} d5 {[%emt 0:02:24]} 11. Bb2 {[%emt 0:04:29]} O-O {[%emt 0:04:23]} 12. e5 {[%emt 0:07:07] B46: Sicilian: Taimanov: 5 Nc3 a6.} Nd7 {[%emt 0:00:17]} 13. Na4 {[%emt 0:00:51] [#]} Nc5 $146 {[%emt 0:07:42]} (13... c5 $15) ({Predecessor:} 13... c5 14. c4 d4 15. f4 g6 16. Rae1 Bb7 17. Bc1 Nb6 18. Nb2 a5 19. a4 Rfe8 {0-1 (45) Ozer,O (2317)-Godzwon,I (2347) Chess.com INT 2020}) 14. Nxc5 $11 {[%emt 0:00:32] The position is equal.} Bxc5 {[%emt 0:00:02]} 15. Kh1 {[%emt 0:01:52]} (15. c4 $142) 15... a5 {[%emt 0:01:15]} 16. a4 {[%emt 0:04:57]} Qa7 {[%emt 0:02:02]} 17. Rad1 {[%emt 0:00:15]} Ba6 {[%emt 0:02:15]} 18. f4 $40 {[%emt 0:01:04][%mdl 128] White has some attack.} Rfe8 {[%emt 0:01:08]} 19. Qg4 {[%emt 0:05:03]} g6 {[%emt 0:03:17]} 20. f5 {[%emt 0:09:33]} Bxd3 {[%emt 0:06:50]} 21. Rxd3 {[%emt 0:00:21]} exf5 {[%emt 0:00:42]} 22. Rxf5 {[%emt 0:00:29]} Qd7 {[%emt 0:01:40]} 23. Rdf3 {[%emt 0:04:16]} Bf8 {[%emt 0:02:03]} (23... Ba3 $11 24. Ba1 (24. Bxa3 $2 Rxe5 25. Rxe5 Qxg4 $17) 24... d4) 24. Qg3 {[%emt 0:01:30]} Ra7 {[%emt 0:01:51]} 25. h4 {[%emt 0:09:21]} (25. Rxf7 $14 Qxf7 26. Rxf7 Rxf7 27. Qd3) 25... Bg7 {[%emt 0:00:48]} (25... Qd8 $11 {remains equal.}) 26. h5 {[%emt 0:13:04]} (26. Rxf7 $16 Qxf7 27. Rxf7 Rxf7 28. Qe3) 26... Re6 {[%emt 0:01:50]} (26... Qd8 $11) 27. hxg6 {[%emt 0:03:05]} (27. Rxf7 $14 Qxf7 28. Rxf7 Rxf7 29. Qe1) 27... hxg6 {[%emt 0:01:11]} (27... fxg6 $11 28. Rf7 Qxf7 29. Rxf7 Rxf7) 28. Rg5 $2 {[%emt 0:01:09] [#]} (28. Rxf7 $16 {is forced if you want to stay better.} Qxf7 29. Rxf7 Rxf7 30. Qg5) 28... Qe8 {[%emt 0:03:25]} 29. Qh4 {[%emt 0:01:45]} c5 {[%emt 0:01:47] Against Bd4} 30. Rh3 {[%emt 0:02:46]} d4 {[%emt 0:00:18] Threatens to win with ...Rae7.} 31. Qh7+ {[%emt 0:00:36]} (31. Bc1 $11 {keeps the balance.}) 31... Kf8 $17 {[%emt 0:00:01]} 32. Ba3 {[%emt 0:01:44]} Rc7 {[%emt 0:00:25]} (32... Qe7 33. Bc1) 33. Rf3 {[%emt 0:01:38]} Qc6 {[%emt 0:02:08]} (33... Rxe5 $17 34. Bc1 (34. Rxg6 Re1+ 35. Kh2 Qe5+ 36. Rgg3 Rc6 $17) 34... Rxg5 35. Bxg5 Qe1+ 36. Kh2 Be5+ 37. Bf4 Bxf4+ 38. Rxf4 Qe5) 34. Rg4 {[%emt 0:05:57]} (34. Rf1 $15) 34... Bxe5 $2 {[%emt 0:03:29]} (34... Rxe5 $17 35. Rxg6 Re1+ 36. Kh2 Be5+ 37. Rgg3 Bxg3+ 38. Kxg3 Qd6+ 39. Kf2 Re3 40. Qh8+ Ke7 41. Qh4+ Ke8 42. Qh8+ Ke7 43. Qh4+ Kd7 44. Qh3+ Kc6 45. Rxe3 dxe3+ 46. Qxe3 Re7 47. Qf3+ Kb6) 35. Qh4 {[%emt 0:01:59][%mdl 8192]} (35. Bc1 $1 $11 {and White stays safe.}) 35... Kg8 {[%emt 0:02:42][%cal Of7f5]} 36. Bc1 {[%emt 0:00:48]} (36. Rh3 $142 f5 37. Rgg3) 36... Rce7 $2 {[%emt 0:02:10]} (36... f5 $19 37. Rxf5 Qd6) 37. Bg5 {[%emt 0:00:25]} (37. Rh3 $2 f5 38. Rg5 Qe4 39. Qxe4 fxe4 $19) 37... Re8 {[%emt 0:00:11]} ({Black should play} 37... Rd7 $17 {White must now prevent ...f5.} 38. Kg1 (38. Rh3 f5 $17) 38... c4 39. bxc4 Qc5) 38. Re4 $2 {[%emt 0:01:05]} (38. Rh3 Bg7 39. Qh7+ Kf8) (38. Rxf7 $1 $11 Bg7 39. Rf3) 38... Bg7 $19 {[%emt 0:00:38]} 39. Rxe6 {[%emt 0:00:35]} Qxe6 {[%emt 0:00:03]} ({And not} 39... fxe6 40. Rh3 Kf7 41. Rf3+ Kg8 42. Bf6 $11) 40. Bd2 $2 {[%emt 0:01:11] Inhibits Qe1+.} (40. Kg1 $17) 40... Qe2 {[%emt 0:01:33]} 41. Qf4 {[%emt 0:06:50]} f5 {[%emt 0:01:56] [#] aiming for ...Be5.} 42. Bxa5 {[%emt 0:01:52]} Qxc2 {[%emt 0:03:00] Black is clearly winning.} 43. Bc7 {[%emt 0:04:40]} (43. Rf1 $142 Qxb3 44. Qd6) 43... Qd1+ {[%emt 0:05:25]} 44. Kh2 {[%emt 0:03:05]} Re1 {[%emt 0:00:22] ( -> ...Rh1+)} 45. Kg3 {[%emt 0:03:44]} Re4 {[%emt 0:01:09] Weighted Error Value: White=0.87/Black=0.48} 0-1

[Event "34th GER-ch Seniors-65 2022"]
[Site "Magdeburg"]
[Date "2022.08.18"]
[Round "7.5"]
[White "Matthey, Harald"]
[Black "Buchal, Stephan"]
[Result "0-1"]
[ECO "B07"]
[WhiteElo "2062"]
[BlackElo "2230"]
[Annotator "TA"]
[PlyCount "49"]
[EventDate "2022.08.12"]
[EventType "swiss"]
[EventCountry "GER"]
[SourceTitle "playchess.com"]
[Source "ChessBase"]
[SourceQuality "1"]
[TimeControl "40/5400+30:1800+30"]

{[%evp 17,49,18,16,0,10,-137,-137,-146,-133,-151,-162,-157,-157,-175,-111,-100,-121,-197,-102,-181,-174,-182,-150,-175,-188,-258,-255,-260,-260,-253,-258,-1039,-1015,-1685]} 1. e4 {[%emt 0:00:01]} g6 {[%emt 0:00:25]} 2. d4 {[%emt 0:03:29]} Bg7 {[%emt 0:00:13]} 3. Nc3 {[%emt 0:00:09]} d6 {[%emt 0:01:22]} 4. g3 {[%emt 0:00:32]} Nf6 {[%emt 0:00:26]} 5. Bg2 {[%emt 0:00:10]} O-O {[%emt 0:00:11]} 6. Nge2 {[%emt 0:00:23]} e5 {[%emt 0:01:04]} 7. h3 {[%emt 0:01:25]} c6 {[%emt 0:00:44]} 8. O-O {[%emt 0:00:20]} b5 $1 {[%emt 0:03:09] 8...b5 scores better than 8...Nbd7.} 9. a3 {[%emt 0:02:02]} Bb7 {[%emt 0:02:53]} 10. Bg5 {[%emt 0:06:50] B07: Pirc Defence: Miscellaneous Systems.} Nbd7 {[%emt 0:12:58] [#]} 11. Kh2 $146 {[%emt 0:14:33] [#]} (11. dxe5 $11 dxe5 12. Nc1) ({Predecessor:} 11. d5 cxd5 12. Nxd5 Bxd5 13. exd5 Qc7 14. Nc3 a6 15. Kh2 Nb6 16. Qe2 Nfd7 17. a4 b4 {0-1 (32) Boguslawski,O (2445)-Kasimdzhanov,R (2690) Germany 2013}) 11... Ng4+ $1 $17 {[%emt 0:03:18][%mdl 512]} 12. hxg4 {[%emt 0:02:37] Black is clearly better.} Qxg5 {[%emt 0:01:20]} 13. f4 {[%emt 0:11:12] [#]} exf4 {[%emt 0:08:10]} (13... Qxg4 14. dxe5 dxe5 15. Bh3 $11) 14. gxf4 {[%emt 0:00:57]} Qxg4 {[%emt 0:09:24]} 15. Qe1 {[%emt 0:04:37]} Qh5+ {[%emt 0:05:03]} ({Better is} 15... Nb6 $19 16. b3 a5) 16. Kg3 {[%emt 0:14:11]} g5 {[%emt 0:05:04] aiming for ...f5. Black is more active.} 17. Bh3 {[%emt 0:06:21]} (17. Rh1 $17 Qg6 18. Qd2) 17... Nf6 {[%emt 0:04:14] Dancing on a razor blade.} (17... f5 $1 $19 {Hoping for ...c5.} 18. Rh1 gxf4+ 19. Kf2 Qe8 20. Nxf4 Bxd4+ 21. Kf1 fxe4) 18. fxg5 {[%emt 0:05:53]} (18. Rh1 $17) 18... Qxg5+ $19 {[%emt 0:01:50]} ({Stronger than} 18... Bc8 19. Bxc8 Qxg5+ 20. Kh3 Raxc8 21. Rg1 Qh5+ 22. Qh4 $15) 19. Kh2 {[%emt 0:00:12]} Bc8 {[%emt 0:11:00]} 20. Bxc8 {[%emt 0:02:41]} Raxc8 {[%emt 0:00:08]} ({And not} 20... Rfxc8 21. Qg3 Qh6+ 22. Qh3 $17) 21. Rf5 {[%emt 0:00:18]} (21. Qg3 $142 Qh6+ 22. Qh3) 21... Qh6+ {[%emt 0:02:16]} 22. Kg2 {[%emt 0:12:14]} Ng4 {[%emt 0:09:54] And now ...Ne3+ would win.} ({Weaker is} 22... b4 23. axb4 Ng4 24. Nf4 Bxd4 25. Qg3 $17) 23. Nf4 {[%emt 0:00:26] Threatens to win with Qg3.} Bxd4 {[%emt 0:02:11]} 24. Kf3 {[%emt 0:05:17]} (24. Qg3 Qg7 25. Kh3 Nf2+ 26. Kg2 Qxg3+ 27. Kxg3) 24... Ne5+ {[%emt 0:03:09]} 25. Kg3 {[%emt 0:03:03] Weighted Error Value: White=0.67/Black=0.16 (very precise)} 0-1

[Event "34th GER-ch Seniors-65 2022"]
[Site "Magdeburg"]
[Date "2022.08.18"]
[Round "7.7"]
[White "Schmidt, Gerhard"]
[Black "Koehler, Gerhard"]
[Result "1/2-1/2"]
[ECO "B41"]
[WhiteElo "2100"]
[BlackElo "2184"]
[Annotator "TA"]
[PlyCount "70"]
[EventDate "2022.08.12"]
[EventType "swiss"]
[EventCountry "GER"]
[SourceTitle "playchess.com"]
[Source "ChessBase"]
[SourceQuality "1"]
[TimeControl "40/5400+30:1800+30"]

{[%evp 14,70,28,28,64,50,43,39,50,41,50,44,57,38,63,62,74,67,102,90,255,256,257,270,273,248,391,389,434,314,302,312,312,289,318,339,372,335,326,299,298,308,303,298,320,312,308,310,325,275,269,168,214,147,307,313,321,320,294]} 1. e4 {[%emt 0:00:19]} c5 {[%emt 0:00:09]} 2. Nf3 {[%emt 0:00:19]} e6 {[%emt 0:00:17]} 3. d4 {[%emt 0:00:14]} cxd4 {[%emt 0:00:07]} 4. Nxd4 {[%emt 0:00:15]} a6 {[%emt 0:00:11]} 5. c4 {[%emt 0:00:32]} Nf6 {[%emt 0:00:24]} 6. Nc3 {[%emt 0:00:17]} Qc7 {[%emt 0:00:45]} 7. Be2 {[%emt 0:00:34]} Bb4 {[%emt 0:01:01]} 8. Nc2 {[%emt 0:00:55]} Be7 {[%emt 0:02:31] B41: Sicilian: Kan Variation: 5 c4.} 9. f4 {[%emt 0:01:21] 9.Be3 is becoming the main line.} d6 {[%emt 0:01:00] Prevents e5.} 10. Be3 {[%emt 0:01:05]} b6 {[%emt 0:01:37] White is slightly better.} 11. O-O {[%emt 0:03:54]} Bb7 {[%emt 0:00:16]} 12. Bf3 {[%emt 0:01:13]} Nbd7 {[%emt 0:01:45]} 13. Nd4 {[%emt 0:00:33] [#]} Nc5 $146 {[%emt 0:01:53][%cal Rc5e4]} ({Predecessor:} 13... Rc8 14. Rc1 Nc5 15. Qc2 Qb8 16. b4 Ncd7 17. Qe2 g6 18. a3 O-O 19. Nb3 Rfe8 {½-½ (63) Backelin,R (2310)-Akesson,R (2465) Borlange 1995}) 14. Qc2 {[%emt 0:02:05]} Rc8 {[%emt 0:02:21]} 15. Rad1 {[%emt 0:04:40] White is more active. White now steadily converts the win.} O-O {[%emt 0:08:13] [#]} 16. g4 $1 {[%emt 0:00:41]} d5 $2 {[%emt 0:02:52]} (16... Ne8 $16) 17. exd5 $18 {[%emt 0:15:45]} exd5 {[%emt 0:00:50]} 18. cxd5 {[%emt 0:01:29]} Bd6 {[%emt 0:00:30]} 19. Nf5 {[%emt 0:12:28]} Rfe8 {[%emt 0:00:16]} (19... Ne8 $142 20. g5 Bxf4) 20. Bd4 {[%emt 0:17:51]} Nce4 {[%emt 0:03:52] [#]} 21. Nxg7 $1 {[%emt 0:14:05][%mdl 512]} Kxg7 {[%emt 0:01:51]} 22. Bxe4 {[%emt 0:01:05]} Bc5 {[%emt 0:01:38]} 23. Qd2 {[%emt 0:04:00]} Kg8 {[%emt 0:09:42]} 24. Bf3 {[%emt 0:00:22]} Rcd8 {[%emt 0:13:36][%cal Rb7d5]} 25. Bxc5 {[%emt 0:01:24]} Qxc5+ {[%emt 0:00:31]} 26. Qd4 {[%emt 0:00:31]} Qxd4+ {[%emt 0:04:37]} 27. Rxd4 {[%emt 0:00:10]} Re7 {[%emt 0:06:33]} 28. Rfd1 {[%emt 0:06:44]} Red7 {[%emt 0:02:50]} 29. Kf2 {[%emt 0:04:06][%cal Bg1f2,Bf2g3,Bg3g4][%mdl 32]} Ne8 {[%emt 0:01:45]} 30. Kg3 {[%emt 0:01:22]} b5 {[%emt 0:00:43]} 31. g5 {[%emt 0:01:14]} Nd6 {[%emt 0:00:26]} 32. Kg4 {[%emt 0:00:51] Prevents Nf5.} Rc7 {[%emt 0:00:15]} (32... Bc8 {keeps fighting.} 33. Kh5 Re7) 33. f5 {[%emt 0:00:26] Ne4 is the strong threat.} Nc4 $2 {[%emt 0:01:42]} (33... Bc8 $16) 34. Re1 {[%emt 0:02:55]} Nxb2 {[%emt 0:00:48]} 35. Ne4 {[%emt 0:00:09]} Kg7 {[%emt 0:02:27][%mdl 32768] Weighted Error Value: White=0.17 (very precise) /Black=0.33. An unexpected result.} 1/2-1/2

[Event "34th GER-ch Seniors-65 2022"]
[Site "Magdeburg"]
[Date "2022.08.18"]
[Round "7.8"]
[White "Cichy, Michael"]
[Black "Beilfuss, Wilfried"]
[Result "1/2-1/2"]
[ECO "D38"]
[WhiteElo "2031"]
[BlackElo "2154"]
[Annotator "TA"]
[PlyCount "32"]
[EventDate "2022.08.12"]
[EventType "swiss"]
[EventCountry "GER"]
[SourceTitle "playchess.com"]
[Source "ChessBase"]
[SourceQuality "1"]
[TimeControl "40/5400+30:1800+30"]

{[%evp 12,32,9,22,25,13,14,0,0,0,0,0,0,-4,11,-45,29,-23,-14,-6,-11,-16,-15]} 1. d4 {[%emt 0:00:06]} Nf6 {[%emt 0:00:28]} 2. Nf3 {[%emt 0:00:30]} e6 {[%emt 0:00:30]} 3. c4 {[%emt 0:00:35]} d5 {[%emt 0:00:00]} 4. Nc3 {[%emt 0:00:30]} Bb4 {[%emt 0:00:14]} 5. Qa4+ {[%emt 1:31:19]} Nc6 {[%emt 0:00:09]} 6. e3 {[%emt 0:00:00]} O-O 7. Bd2 {[%emt 0:00:00]} dxc4 {D38: Queen's Gambit Declined: Ragozin Defence (4 Nf3 Bb4).} 8. Bxc4 {[%emt 0:01:30]} Bd6 {[%emt 1:33:09]} 9. Rd1 {[%emt 0:00:00]} e5 {[%emt 0:00:00]} 10. d5 {[%emt 0:00:00]} Ne7 {[%emt 0:00:00]} 11. e4 {[%emt 0:00:00] Prevents Bf5.} Bg4 {[%emt 0:01:30]} 12. Be2 $1 {[%emt 0:00:00] [#]} c6 $146 {[%emt 0:00:00]} ({Predecessor:} 12... Ng6 13. h3 Bxf3 14. Bxf3 Nh4 15. Ke2 Nd7 16. g3 Nxf3 17. Kxf3 f5 18. exf5 Rxf5+ {½-½ (33) Istratescu,A (2565)-Parligras,M (2645) Bucharest 2018}) 13. Bg5 {[%emt 0:02:30]} ({White should try} 13. dxc6 $11 Nxc6 14. Be3) 13... cxd5 {[%emt 0:00:00]} (13... b5 $15 14. Qc2 b4 15. Bxf6 gxf6) 14. Bxf6 {[%emt 0:00:00]} (14. exd5 $142 Bf5 15. O-O) 14... gxf6 $11 {[%emt 0:00:00]} 15. exd5 {[%emt 0:00:00]} f5 {[%emt 0:02:00]} 16. O-O {[%emt 0:00:00]} Qb6 {[%emt 0:00:00] An interesting draw.  Weighted Error Value: White=0.18 (very precise) /Black=0.14 (very precise)} 1/2-1/2

[Event "34th GER-ch Seniors-65 2022"]
[Site "Magdeburg"]
[Date "2022.08.18"]
[Round "7.9"]
[White "Knaak, Joachim"]
[Black "Pueschel, Werner"]
[Result "0-1"]
[ECO "A43"]
[WhiteElo "2142"]
[BlackElo "2034"]
[Annotator "TA"]
[PlyCount "84"]
[EventDate "2022.08.12"]
[EventType "swiss"]
[EventCountry "GER"]
[SourceTitle "playchess.com"]
[Source "ChessBase"]
[SourceQuality "1"]
[TimeControl "40/5400+30:1800+30"]

{[%evp 12,84,59,49,56,59,81,72,120,85,141,112,111,79,76,64,85,88,99,91,139,94,104,101,133,104,116,116,139,115,125,117,115,-3,0,-8,-3,-12,-14,-23,2,0,0,0,0,14,34,-11,0,-35,-15,-60,-47,-197,-107,-110,-85,-81,-85,-115,-75,-83,-35,-56,0,-104,-16,-13,0,0,0,-57,-53,-29985,-29986]} 1. d4 {[%emt 0:00:04][%cal Bd2d4,Bd4d5][%mdl 32]} c5 {[%emt 0:02:23]} 2. d5 {[%emt 0:00:34]} Nf6 {[%emt 0:00:06]} 3. Nc3 {[%emt 0:01:00]} d6 {[%emt 0:00:08]} 4. e4 {[%emt 0:00:32]} g6 {[%emt 0:00:10]} 5. f4 {[%emt 0:02:09]} Bg7 {[%emt 0:05:19]} 6. Bb5+ {[%emt 0:06:05]} Nfd7 {[%emt 0:02:57]} 7. a4 {[%emt 0:03:09]} O-O {[%emt 0:01:04] A43: Schmid Benoni.} 8. Nf3 {[%emt 0:00:58][%cal Bg1f3,Bf3d2,Bd2c4][%mdl 32]} a6 {[%emt 0:00:37]} 9. Be2 {[%emt 0:00:26]} Qc7 {[%emt 0:00:37]} (9... a5 $142) 10. O-O $16 {[%emt 0:00:39]} b6 {[%emt 0:00:47]} ({Black should try} 10... Nf6) 11. Be3 {[%emt 0:03:04]} Nf6 {[%emt 0:01:16]} 12. Nd2 {[%emt 0:05:54]} Nbd7 {[%emt 0:03:44] [#]} 13. Nc4 $146 {[%emt 0:02:24]} ({Predecessor:} 13. g4 Ne8 14. Qe1 Bd4 15. Qf2 Bg7 16. Qh4 Bxc3 17. bxc3 f6 18. c4 Rf7 19. Nf3 Nf8 20. e5 {1-0 (32) Van Mil,J (2422)-Tjiam,D (2358) Netherlands 2001}) 13... Bb7 {[%emt 0:01:32]} 14. Bf3 {[%emt 0:07:47]} Rad8 {[%emt 0:09:12]} 15. Qd2 {[%emt 0:03:56]} Bc8 {[%emt 0:04:51]} (15... Ne8 $142) 16. Rae1 {[%emt 0:09:16]} Ne8 {[%emt 0:05:37]} 17. Bf2 {[%emt 0:08:33]} Bxc3 {[%emt 0:01:09]} 18. bxc3 {[%emt 0:05:01]} b5 {[%emt 0:00:24]} 19. Ne3 {[%emt 0:07:13]} Nb6 {[%emt 0:02:54]} 20. axb5 {[%emt 0:02:47]} axb5 {[%emt 0:00:10]} 21. Rb1 {[%emt 0:01:37]} Bd7 {[%emt 0:04:27]} 22. e5 {[%emt 0:06:45]} (22. Bh4 $16 f6 23. Rfe1) 22... dxe5 $11 {[%emt 0:02:57]} 23. fxe5 {[%emt 0:00:02]} Qxe5 {[%emt 0:00:46]} 24. c4 {[%emt 0:01:10]} b4 {[%emt 0:02:11]} 25. Rfe1 {[%emt 0:03:55]} (25. Bg3 Qg7 26. c3 bxc3 $15) 25... Qc7 {[%emt 0:02:10]} 26. c3 {[%emt 0:01:21]} bxc3 {[%emt 0:01:56]} ({But not} 26... Nd6 27. cxb4 Na4 28. b5 $16) 27. Qxc3 {[%emt 0:00:02][%cal Od5d6]} Na4 {[%emt 0:00:25]} 28. Qc2 {[%emt 0:01:42][%cal Od5d6]} Nd6 {[%emt 0:00:34]} 29. Bg4 {[%emt 0:02:16]} f5 {[%emt 0:02:55]} 30. Be2 {[%emt 0:00:12]} Ne4 {[%emt 0:01:24] Pair of Knights!} 31. Bf3 {[%emt 0:02:07]} Nxf2 {[%emt 0:00:48]} 32. Kxf2 {[%emt 0:01:27]} (32. Qxf2 $15 Nb6 33. Qh4) 32... Rb8 {[%emt 0:00:49]} (32... Qxh2 $19 33. Nf1 Qh4+ 34. Kg1 Rb8) 33. Kg1 $17 {[%emt 0:02:18][%cal Od5d6]} Rxb1 {[%emt 0:01:16]} 34. Qxb1 {[%emt 0:03:59]} Rb8 {[%emt 0:04:10]} (34... Qf4 {keeps more tension.} 35. Qa1 Re8 36. Bd1 Nb6) 35. Qd3 {[%emt 0:01:33]} Nb6 {[%emt 0:06:59]} 36. g3 {[%emt 0:02:26]} Nc8 {[%emt 0:00:37]} (36... Qd6 $17) 37. Ng2 $15 {[%emt 0:00:32]} Qa5 {[%emt 0:00:43]} ({Better is} 37... Rb2 $15) 38. h4 {[%emt 0:01:59]} (38. Qe3 $11) 38... Rb2 {[%emt 0:00:38]} (38... Qa2 $17 {And now ...Rb3 would win.} 39. Qe2 Qxe2 40. Bxe2 Nd6) 39. Qe3 $11 {[%emt 0:01:01]} Qb4 {[%emt 0:01:06]} 40. Qe5 {[%emt 0:01:13][%cal Od5d6] aiming for d6!} Ra2 {[%emt 0:21:53]} 41. h5 {[%emt 0:09:07]} (41. Nf4 $11) 41... Qb2 $15 {[%emt 0:03:44]} 42. Qc7 $2 {[%emt 0:01:18][%mdl 8192] [#]} (42. Qxb2 $15 Rxb2 43. Nf4) 42... Qf2+ {[%emt 0:00:38] Weighted Error Value: White=0.47/Black=0.20 (precise)} 0-1